Cogmind - Beta 14 @@@ ROGUE MODE // 2024.08.21 @ 16:01:56 Player: Kio Result: Destroyed by UT-I1R(R) with Subdweller Laser Performance ------------- Evolutions (0) 0 Regions Visited (2) 400 Robots Destroyed (15) 75 Value Destroyed (346) 346 Prototype IDs (3) 60 Alien Tech Used (0) 0 Bonus (0) 0 TOTAL SCORE: 881 Bonus ------- None Cogmind --------- Core Integrity 0/250 Matter 210/300 Energy 200/200 System Corruption 0% Temperature Cool (6) Movement Rolling (110) Location -10/Subcaves Parts ------- > --- POWER (1) -------- Subdweller Power Source > --- PROPULSION (2) --- Subdweller Monowheel Subdweller Monowheel > --- UTILITY (2) ------ Small Storage Unit Phase Shifter > --- WEAPON (2) ------- Medium Laser Assault Rifle > --- INVENTORY (8) ---- Light Ion Engine Heat Sink Sensor Array Makeshift Light Armor Plating Makeshift Spear Peak State ------------ > --- POWER ------------ Subdweller Power Source > --- PROPULSION ------- Subdweller Monowheel Subdweller Monowheel > --- UTILITY ---------- Small Storage Unit Phase Shifter > --- WEAPON ----------- Medium Laser Assault Rifle > --- INVENTORY -------- Light Ion Engine Heat Sink Sensor Array Makeshift Light Armor Plating Makeshift Spear [Rating: 15] Favorites ----------- Power Ion Engine Engine Ion Engine Propulsion Light Treads Treads Light Treads Leg Aluminum Leg Wheel Subdweller Monowheel Utility Small Storage Unit Device Improved Terrain Scanner Storage Small Storage Unit Weapon Medium Laser Energy Gun Medium Laser Ballistic Gun Light Assault Rifle Build | -11 -10 -10 ------- Run | Yrd Mat Sub Slots Evolved . | . . . Power . | . . . Propulsion . | . . . Utility . | . . . Weapon . | . . . Parts Attached 32 | 9 6 17 Power 2 | 1 . 1 Engine 2 | 1 . 1 Core . | . . . Reactor . | . . . Propulsion 8 | 2 2 4 Treads 2 | 2 . . Leg 4 | . 2 2 Wheel 2 | . . 2 Hover . | . . . Flight . | . . . Utility 16 | 3 3 10 Device 15 | 2 3 10 Storage 1 | 1 . . Processor . | . . . Hackware . | . . . Protection . | . . . Artifact . | . . . Weapon 6 | 3 1 2 Energy Gun 3 | 2 1 . Energy Cannon . | . . . Ballistic Gun 3 | 1 . 2 Ballistic Cannon . | . . . Launcher . | . . . Special Weapon . | . . . Impact Weapon . | . . . Slashing Weapon . | . . . Piercing Weapon . | . . . Special Melee Weapon . | . . . Unidentified Prototypes . | . . . Parts Lost 2 | . . 2 Power 1 | . . 1 Propulsion . | . . . Utility . | . . . Weapon 1 | . . 1 Highest Loss Streak 1 | . . 1 To Critical Strikes 1 | . . 1 Average Slot Usage (%) 99 | . 100 97 Engine 13 | . 14 13 Treads 7 | . 9 . Leg 19 | . 18 24 Device 14 | . 14 14 Storage 14 | . 14 14 Energy Gun 24 | . 27 14 Ballistic Gun 2 | . . 11 Peak Build Rating 15 | 10 10 15 Average Rating 9 | 9 8 10 On Entrance 6 | . 10 8 Naked Turns . | . . . Heaviest Build 15 | 14 15 15 Greatest Support 40 | 40 40 40 Greatest Overweight (x) 1 | 1 1 . Average Overweight (x) . | . . . Largest Inventory Capacity 8 | 8 8 8 Average Capacity 7 | 7 8 8 Most Carried 8 | 8 8 8 Average Carried 7 | 7 7 7 Final Capacity 8 | 8 8 8 Final Carried 8 | 8 8 5 Class Distribution -------------------- 99% | Mutant Dominant Class ---------------- Mutant | -10/Materials Mutant | -10/Subcaves Resources | -11 -10 -10 ----------- Run | Yrd Mat Sub Matter Collected 453 | 284 69 100 Remotely . | . . . Salvage Created 485 | 88 308 89 Parts 32 | 14 11 7 Haulers Intercepted 1 | . 1 . Recyclers Shooed . | . . . Parts Field Recycled . | . . . Retrieved Matter . | . . . Parts Self-Destructed . | . . . Prevented . | . . . Kills | -11 -10 -10 ------- Run | Yrd Mat Sub Combat Hostiles Destroyed 8 | . 6 2 Guns 7 | . 5 2 Classes Destroyed 5 | 1 3 1 Tunneler 4 | 4 . . Hauler 1 | . 1 . Watcher 2 | . 2 . Grunt 6 | . 6 . Subdweller 2 | . . 2 Best Kill Streak 2 | 2 2 2 Combat Bots Only 2 | . 2 2 Max Kills in Single Turn 1 | 1 1 1 Gunslinging . | . . . Exploded . | . . . Melee . | . . . Uniques/NPCs Destroyed . | . . . Combat | -11 -10 -10 -------- Run | Yrd Mat Sub Hostile Shots Fired 84 | . 32 52 Missed 29 | . 7 22 Damage Taken 902 | . 275 627 Core 265 | . 54 211 Absorbed by Shields . | . . . Core Remaining (%) 100 | 100 . . Volleys Fired 47 | 5 32 10 Largest 2 | 2 2 2 Hottest 100 | 90 100 70 Shots Fired 94 | 10 64 20 Gun 94 | 10 64 20 Cannon . | . . . Launcher . | . . . Special . | . . . Kinetic 13 | 3 . 10 Thermal 79 | 5 64 10 Explosive . | . . . Electromagnetic 2 | 2 . . Robot Hit Streak 15 | 6 8 15 Robot Miss Streak 3 | . 3 1 Penetration Max . | . . . Secondary Targets . | . . . Shots Hit Robots 68 | 6 44 18 Core Hits 25 | 4 16 5 Critical Kills . | . . . Critical Parts Destroyed . | . . . Critical Strikes 11 | 1 10 . Burn 11 | 1 10 . Melee Attacks . | . . . Impact . | . . . Slashing . | . . . Piercing . | . . . Sneak Attacks . | . . . Combat Hostiles . | . . . Follow-up Attacks . | . . . Damage Inflicted 843 | 75 562 206 Guns 843 | 75 562 206 Cannons . | . . . Explosions . | . . . Melee . | . . . Ramming . | . . . Kinetic 99 | 6 . 93 Thermal 714 | 39 562 113 Explosive . | . . . Electromagnetic 30 | 30 . . Impact . | . . . Slashing . | . . . Piercing . | . . . Highest Corruption . | . . . Average Corruption . | . . . Corruption Purged . | . . . Corruption Blocked . | . . . Overload Shots . | . . . Overflow Damage . | . . . Projectiles . | . . . Explosions . | . . . Melee . | . . . Knockbacks . | . . . Impact . | . . . Kinetic . | . . . Secondary . | . . . Self-Inflicted Damage . | . . . Shots . | . . . Rammed . | . . . Targets Rammed . | . . . Kicked . | . . . Crushed . | . . . Highest Temperature 400 | 60 400 . Average Temperature 142 | 22 155 . Received Heat Transfer 204 | . 150 54 Effects 4 | . 4 . Shutdowns 1 | . 1 . Interference 3 | . 3 . Siege Activations . | . . . Robots Corrupted . | . . . Combat Hostiles . | . . . Parts Fried . | . . . Impact Corruptions . | . . . Robots Melted 1 | . 1 . Combat Hostiles 1 | . 1 . Parts Melted 4 | . 2 2 Heat Transferred 2923 | 185 2405 333 Parts Sabotaged . | . . . Parts Stolen . | . . . Parts Stripped . | . . . Power Chain Reactions . | . . . Alert | -11 -10 -10 ------- Run | Yrd Mat Sub Peak Influence 128 | 20 128 . Initial . | . . . Average 10 | 1 40 . Maximum Alert Level . | . . . Low Security (%) 100 | 100 100 . Level 1 . | . . . Level 2 . | . . . Level 3 . | . . . Level 4 . | . . . Level 5 . | . . . High Security . | . . . Max Security . | . . . Squads Dispatched 2 | . 2 . Investigation 1 | . 1 . Extermination . | . . . Reinforcement 1 | . 1 . Assault . | . . . Garrison . | . . . Intercept . | . . . Searches Triggered . | . . . Construction Impeded . | . . . Haulers Reinforced . | . . . Active Scanning Responses . | . . . Cargo Convoy Interrupts . | . . . Stealth | -11 -10 -10 --------- Run | Yrd Mat Sub Distress Signals . | . . . Communications Jammed . | . . . Distress Signals . | . . . Times Spotted 26 | . 10 16 Peak Tracking Total 10 | . 3 10 Tactical Retreats 1 | . . 1 Traps | -11 -10 -10 ------- Run | Yrd Mat Sub Traps Triggered 1 | . 1 . Indirectly . | . . . Trap Hack Attempts . | . . . Triggered . | . . . Disarmed . | . . . Reprogrammed . | . . . Reused . | . . . Traps Extracted . | . . . Installed . | . . . Triggered . | . . . Machines | -11 -10 -10 ---------- Run | Yrd Mat Sub Machines Disabled . | . . . Max in Single Turn . | . . . Machines Repaired . | . . . Machines Dismantled . | . . . Machines Sabotaged . | . . . Overloaded Fab Kills . | . . . Hacking | -11 -10 -10 --------- Run | Yrd Mat Sub Machines Accessed 3 | . 3 . Terminals 3 | . 3 . Fabricators . | . . . Repair Stations . | . . . Recycling Units . | . . . Scanalyzers . | . . . Garrison Access . | . . . Total Hacks 7 | . 7 . Successful 2 | . 2 . Failed 5 | . 5 . Catastrophic 1 | . 1 . Database Lockouts . | . . . Manual 4 | . 4 . Terminals 7 | . 7 . Fabricators . | . . . Repair Stations . | . . . Recycling Units . | . . . Scanalyzers . | . . . Garrison Access . | . . . Terminal Hacks 2 | . 2 . Prototype ID Bank 1 | . 1 . Branch Access Points 1 | . 1 . Fabricator Hacks . | . . . Repair Station Hacks . | . . . Recycling Unit Hacks . | . . . Scanalyzer . | . . . Garrison Access Hacks . | . . . Unauthorized Hacks . | . . . Terminals . | . . . Fabricators . | . . . Repair Stations . | . . . Recycling Units . | . . . Scanalyzers . | . . . Garrison Access . | . . . Data Cores Recovered . | . . . Used . | . . . Hacking Detections 3 | . 3 . Full Trace Events . | . . . Feedback Events . | . . . Feedback Blocked . | . . . Robot Schematics Acquired . | . . . Robots Built . | . . . Authchips . | . . . Time . | . . . Total Robot Build Rating . | . . . Part Schematics Acquired . | . . . Parts Built . | . . . Authchips . | . . . Time . | . . . Total Part Build Rating . | . . . Parts Repaired . | . . . Time . | . . . Parts Recycled . | . . . Recycled Matter . | . . . Retrieved Matter . | . . . Retrieved Components . | . . . Parts Scanalyzed . | . . . Part Schematics Acquired . | . . . Parts Damaged . | . . . Bothacking | -11 -10 -10 ------------ Run | Yrd Mat Sub Used RIF Installer . | . . . Robots Hacked . | . . . Non-combat . | . . . Combat . | . . . Robot Hacks Applied . | . . . Relay Couplers Released . | . . . Fabnet Peak Effective % . | . . . Robots Rewired . | . . . Allies Hacked . | . . . Hacks Repelled . | . . . Allies | -11 -10 -10 -------- Run | Yrd Mat Sub Total Allies . | . . . Largest Group . | . . . Highest-Rated Group . | . . . Highest-Rated Ally . | . . . Total Orders . | . . . Ally Attacks . | . . . Total Damage . | . . . Kills . | . . . Allies Corrupted . | . . . Allies Melted . | . . . Intel | -11 -10 -10 ------- Run | Yrd Mat Sub Robot Analysis Total . | . . . Derelict Logs Recovered . | . . . Drone Launches . | . . . Drone Recoveries . | . . . Exploration | -11 -10 -10 ------------- Run | Yrd Mat Sub Turns Passed 4971 | 3652 1031 288 Spaces Moved 1188 | 656 359 173 Core 9 | 9 . . Treads 768 | 647 121 . Legs 390 | . 238 152 Wheels 21 | . . 21 Hover . | . . . Flight . | . . . Fastest Speed 50 | 50 120 110 Average Speed 145 | 158 134 118 Slowest Speed 190 | 160 190 120 Overloaded Moves . | . . . Propulsion Burnouts . | . . . Robots Hopped . | . . . Cave-ins Triggered . | . . . Exploration Rate (%) 35 | 54 37 15 Regions Visited 2 Branch Regions 1 Pre-discovered Areas . | . . . Known Exits Taken . | . . . Unknown Exits Taken 2 | 1 1 . Scrap Searched . | . . . Spaces Dug . | . . . Terrain Destroyed . | . . . Melee . | . . . Projectile . | . . . AOE . | . . . Terrain Rammed . | . . . Walls Destroyed . | . . . Machines Disabled . | . . . Actions | -11 -10 -10 --------- Run | Yrd Mat Sub Total 4337 | 3254 846 237 Wait 3024 | 2576 430 18 Move 1186 | 655 358 173 Hop . | . . . Pick Up 25 | 9 10 6 Fast Attach 8 | 6 . 2 Attach 7 | 1 . 6 Detach 4 | . . 4 Swap 17 | 2 6 9 Drop 19 | . 10 9 Fire 47 | 5 32 10 Melee . | . . . Ram . | . . . Kick . | . . . Crush . | . . . Escape Stasis . | . . . Rewire . | . . . Trap . | . . . Miscellaneous . | . . . Route ------- -11/Scrapyard -10/Materials (discovered 3 exits: [*Mat] / Min / [*Sub]) -10/Subcaves History --------- Turn | Location | Event 12 | -11/Scrapyard | Discovered new exit (range 13) 3653 | -11/Scrapyard | Entered Materials 3654 | -10/Materials | Build established: Mutant 3681 | -10/Materials | Identified exit to Mines 4108 | -10/Materials | Discovered new exit (range 3) 4663 | -10/Materials | Discovered new exit (range 8) 4684 | -10/Materials | Entered Subcaves 4685 | -10/Subcaves | Shifting Twisted Machinery released Mak. Spear 4687 | -10/Subcaves | Shifting Twisted Machinery released Mak. Light Armor Plating 4736 | -10/Subcaves | A swath of the cavern ceiling suddenly collapsed 4767 | -10/Subcaves | Ambushed by Subdwellers from Twisted Machinery 4873 | -10/Subcaves | Ambushed by swarm of Subdwellers 4909 | -10/Subcaves | Core integrity fell below 50% 4914 | -10/Subcaves | Core integrity fell below 20% 4972 | -10/Subcaves | Destroyed by UT-I1R(R) with Subdweller Laser Last Messages --------------- 04805_ Acquired Sub. Power Source. 04809_ Acquired 44 matter. 04813_ Acquired Sub. Monowheel. 04823_ Dropped Seismic Detector. 04824_ Acquired Phase Shifter. 04826_ V4-EUM(R) affixes Scrap Shield Fragment to Scrap Shield. 04838_ Acquired 4 matter. A mess of Twisted Machinery falls from the cavern ceiling. 04875_ VV-Q4T(R) emerges from the Twisted Machinery. 04877_ ZV-FHB(R) emerges from the Twisted Machinery. 04907_ 5C-A4F(R) suffers critical hit (Destroy). 04907_ 5C-A4F(R) destroyed. 04914_ Critical hit (Destroy). 04914_ Assault Rifle destroyed. 04930_ Subatomizers dissect the Seismic Detector. 04934_ Acquired 3 matter. 04935_ Acquired 4 matter. 04942_ Dropped Aluminum Leg. Map ----- +----------------------------------------------------+ | ?????????????????????????????????????????????????? | | ?????????????????????????????????????????????????? | | ?????????????????????????????????????????????????? | | ?????????????????????????????????????????????????? | | ?????????????????????????????????????????????????? | | ?????????????????????????????????????????????????? | | ?????????????????????????????????????????????????? | | ?????#"""????????????????????????????????????????? | | ?????#"""????????????????????????????????????????? | | ????##""#?????###????????????????????????????????? | | ????# "###??## ##???????????????????????????????? | | ?????#""# #### ##??????????????????????????????? | | ?????#" #??????????????????????????????? | | ????## ## "" #?????????""???????????????????? | | ????# ## """ #?????????""???????????????????? | | ????## ####" " #?????????""???????????????????? | | #???## ####""""#?????##?? ???????????????????? | | #??# " "#### ###?????""## ???????????????????? | | #?## " ###""#??????"" """" ????????????????? | | ## [ ##""#??????#" """"#????????????????? | | ####"##???#### R"""#????????????????? | | ###"" "#????""#" "R""#????????????????? | | # !! ##?#"#"#""#???";# #????????????????? | | ## #??#"" ####???## #????????????????? | | ?## ##??###" ##???## #??????????????????? | | ??# #?????# ""##??# @# #??????????????????? | | ??# ####?????# """#??## # ##?????????????????? | | ??## ????????##"###"#??#### #?????????????????? | | ???##???##???#""# ?##??#" #?????????????????? | | ????????# #?## "# ???"#"##### #?????????????????? | | ????????# "##""#"#??? ??????## #?????????????????? | | ????????##"" #"###??## ??????# #?????????????????? | | ????????#"" ##"#????# ?????## #?????????????????? | | ????????##" ####????# #???## #?????????????????? | | ?????????#" #???????# #### ##?????????????????? | | ?????????#" ##??????# # #??????????????????? | | ?????????# ###?????# ####??????????????????? | | ?????????# ! ###???##" ##??????????????????? | | ????????## % ####?## ### # #????????????? | | ????????# ##?# #????????????? | | ??????###=& " %"#### # #???????????? | | ??????# =!&! ""# "#### ###?# ?????????? | | ??????## ""## ### ##????? ??????????? | | ???????#" %"##### ## " #= ######??? ???????????? | | ??????# " ###??## ##"" = ????????? | | ??????##"" ???## ### ????????? | | ???????#"" #??# #### ## # ????????? | | ???????# #??# #### #??#?# ????????? | | ???????# ??#### ### #???# ?????????? | | ?????? ????# #######??# ? ?????????? | +----------------------------------------------------+ Best States ------------- Heat Dissipation 25 Energy Generation 15 Energy Capacity 250 Matter Stores 300 Matter Capacity 300 Sight Range 16 Robot Scan Range 14 Terrain Scan Range 16 Terrain Scan Density 10 Phase Shifting 5 Evasion (%) 60 Recoil Reduction 2 Item Schematics ----------------- None Robot Schematics ------------------ None Fabricated ------------ Nothing Alien Tech Used ----------------- None Achievements -------------- None Challenges ------------ None Game ------ Seed AlphaGuidanceMatter Manual? 0 Play Time 00:31:56 Cumulative 13.7 hours Start 2024.08.21 @ 10:46:34 End 2024.08.21 @ 16:01:56 Sessions 2 Manual Loads 0 Difficulty Rogue Special Mode None Game No. 9 Rogue 9 Adventurer 0 Explorer 0 Win Type - Total 0 Types 0/0/0/0/0/0/0/0/0 Lore% 4 Gallery% 12 Achievement% 14 Wizard Run 0 Options --------- Layout 1 ASCII 0 Keyboard 1 Movement Vi Keybinds 0 Fullscreen 1 Font 16/SmallcapsGlow Map View 55x38 Zoom Use 0% Tactical HUD 1 Map Filters NONE Filters NONE Steam 1 RUN: f994dc74-bf2e-468a-b42c-c5e77dec46da